Workbook

Sheet Data Input
C1: Activity:
C3: Characteristic:
C6: Operator | D6: Part | E6: Trial
E7: 1 | F7: 2 | G7: 3
C8: 1 | D8: 1
D9: 2
D10: 3
D11: 4
D12: 5
D13: 6
C14: 2 | D14: 1
D15: 2
D16: 3
D17: 4
D18: 5
D19: 6
C20: 3 | D20: 1
D21: 2
D22: 3
D23: 4
D24: 5
D25: 6

Sheet Analysis
B5: Activity:
B6: =IF('Data Input'!C2="","",'Data Input'!C2) -> 
B9: Characteristic: | G9: LSL | CN9: Y axis min | CO9: =setChartAxis("Analysis","Chart 7","Min","Value","Primary",CS15) -> 
B10: =IF('Data Input'!C4="","",'Data Input'!C4) ->  | CN10: Y axis max | CO10: =setChartAxis("Analysis","Chart 7","Max","Value","Primary",CR15) -> 
G11: USL | CN11: X axis max | CO11: =setChartAxis("Analysis","Chart 7","Max","Category","Primary",BZ68+1) -> 
CT12: Rbar | CU12: =IF(COUNT(CX15:CX32)=0,"",AVERAGE(CX15:CX32)) -> 
BW14: Trial | BX14: Appraiser | BY14: Column | CA14: part averages (sample size of 2) | CB14: part avg (n= 3 or 2) | CH14: Part avg by appr | CL14: Overall avg | CM14: X axis | CO14: LSL | CP14: USL | CQ14: min- | CR14: max- | CS14: X axis MIN | CT14: X axis max | CU14: Range | CV14: Rbar | CW14: UCL | CX14: Range for Rbar
BW15: 1 | BX15: 1 | BY15: 1 | BZ15: 1 | CH15: =IF(COUNTA('Data Input'!E8)=1,AVERAGE('Data Input'!E8:G8),NA()) ->  | CI15: =CH15 ->  | CJ15: =CI15 ->  | CK15: 1 | CL15: =IF(COUNT('Data Input'!E8:G13)>0,AVERAGE('Data Input'!E8:G13),NA()) ->  | CM15: =(COUNT(CH15:CH20)/2)*3 -> 0 | CO15: =IF(COUNTA($H$9)=1,$H$9,NA()) ->  | CP15: =IF(COUNTA($H$11)=1,$H$11,NA()) ->  | CQ15: =MIN('Data Input'!$E$8:$G$25,$H$9,$H$11)-((MAX('Data Input'!$E$8:$G$25,$H$9,$H$11)-MIN('Data Input'!$E$8:$G$25,$H$9,$H$11))/4) -> 0 | CR15: =IF(CS15=0,10,MAX('Data Input'!$E$8:$G$25,$H$9,$H$11)+((MAX('Data Input'!$E$8:$G$25,$H$9,$H$11)-MIN('Data Input'!$E$8:$G$25,$H$9,$H$11))/4)) -> 10 | CS15: =IF(CQ15<0,0,CQ15) -> 0 | CU15: =IF(COUNTA('Data Input'!E8)=1,MAX('Data Input'!E8:G8)-MIN('Data Input'!E8:G8),NA()) ->  | CV15: =AVERAGE($CX$15:$CX$32) ->  | CW15: =$CU$12*IF(COUNT('Data Input'!E8:G8)=2,3.268,2.574) ->  | CX15: =IF(COUNTA('Data Input'!E8)=1,MAX('Data Input'!E8:G8)-MIN('Data Input'!E8:G8),"") -> 
BW16: 2 | BX16: 1 | BY16: 1 | BZ16: 2 | CA16: 1.5 | CB16: =IF(COUNT('Data Input'!E8:G8)=3,BZ16,IF(COUNT('Data Input'!E8:G8)<3,CA16,"")) -> 1.5 | CH16: =IF(COUNTA('Data Input'!E9)=1,AVERAGE('Data Input'!E9:G9),NA()) ->  | CI16: =CH16 ->  | CK16: 2 | CL16: =IF(COUNT('Data Input'!E14:G19)>0,AVERAGE('Data Input'!E14:G19),NA()) ->  | CM16: =(6+(COUNT(CH21:CH26)/2))*3 -> 18 | CO16: =IF(COUNTA($H$9)=1,$H$9,NA()) ->  | CP16: =IF(COUNTA($H$11)=1,$H$11,NA()) ->  | CQ16: =MIN('Data Input'!$E$8:$G$25,$H$9,$H$11)-((MAX('Data Input'!$E$8:$G$25,$H$9,$H$11)-MIN('Data Input'!$E$8:$G$25,$H$9,$H$11))/4) -> 0 | CR16: =IF(CS16=0,10,MAX('Data Input'!$E$8:$G$25,$H$9,$H$11)+((MAX('Data Input'!$E$8:$G$25,$H$9,$H$11)-MIN('Data Input'!$E$8:$G$25,$H$9,$H$11))/4)) -> 10 | CS16: =IF(CQ16<0,0,CQ16) -> 0 | CU16: =IF(COUNTA('Data Input'!E9)=1,MAX('Data Input'!E9:G9)-MIN('Data Input'!E9:G9),NA()) ->  | CV16: =AVERAGE($CX$15:$CX$32) ->  | CW16: =$CU$12*IF(COUNT('Data Input'!E9:G9)=2,3.268,2.574) ->  | CX16: =IF(COUNTA('Data Input'!E9)=1,MAX('Data Input'!E9:G9)-MIN('Data Input'!E9:G9),"") -> 
B17: MSA Summary Statistics | BW17: 3 | BX17: 1 | BY17: 1 | BZ17: 3 | CH17: =IF(COUNTA('Data Input'!E10)=1,AVERAGE('Data Input'!E10:G10),NA()) ->  | CI17: =CH17 ->  | CK17: 3 | CL17: =IF(COUNT('Data Input'!E20:G25)>0,AVERAGE('Data Input'!E20:G25),NA()) ->  | CM17: =(12+(COUNT(CH26:CH31)/2))*3 -> 36 | CQ17: =MIN('Data Input'!$E$8:$G$25,$H$9,$H$11)-((MAX('Data Input'!$E$8:$G$25,$H$9,$H$11)-MIN('Data Input'!$E$8:$G$25,$H$9,$H$11))/4) -> 0 | CR17: =IF(CS17=0,10,MAX('Data Input'!$E$8:$G$25,$H$9,$H$11)+((MAX('Data Input'!$E$8:$G$25,$H$9,$H$11)-MIN('Data Input'!$E$8:$G$25,$H$9,$H$11))/4)) -> 10 | CS17: 0 | CU17: =IF(COUNTA('Data Input'!E10)=1,MAX('Data Input'!E10:G10)-MIN('Data Input'!E10:G10),NA()) ->  | CW17: =$CU$12*IF(COUNT('Data Input'!E10:G10)=2,3.268,2.574) ->  | CX17: =IF(COUNTA('Data Input'!E10)=1,MAX('Data Input'!E10:G10)-MIN('Data Input'!E10:G10),"") -> 
BW18: 1 | BX18: 1 | BY18: 2 | BZ18: 4 | CH18: =IF(COUNTA('Data Input'!E11)=1,AVERAGE('Data Input'!E11:G11),NA()) ->  | CI18: =CH18 ->  | CQ18: =MIN('Data Input'!$E$8:$G$25,$H$9,$H$11)-((MAX('Data Input'!$E$8:$G$25,$H$9,$H$11)-MIN('Data Input'!$E$8:$G$25,$H$9,$H$11))/4) -> 0 | CR18: =IF(CS18=0,10,MAX('Data Input'!$E$8:$G$25,$H$9,$H$11)+((MAX('Data Input'!$E$8:$G$25,$H$9,$H$11)-MIN('Data Input'!$E$8:$G$25,$H$9,$H$11))/4)) -> 10 | CS18: 0 | CU18: =IF(COUNTA('Data Input'!E11)=1,MAX('Data Input'!E11:G11)-MIN('Data Input'!E11:G11),NA()) ->  | CW18: =$CU$12*IF(COUNT('Data Input'!E11:G11)=2,3.268,2.574) ->  | CX18: =IF(COUNTA('Data Input'!E11)=1,MAX('Data Input'!E11:G11)-MIN('Data Input'!E11:G11),"") -> 
C19: R bar | E19: =CU12 ->  | BW19: 2 | BX19: 1 | BY19: 2 | BZ19: 5 | CA19: =BZ19-0.5 -> 4.5 | CB19: =IF(COUNT('Data Input'!E9:G9)=3,BZ19,IF(COUNT('Data Input'!E9:G9)<3,CA19,"")) -> 4.5 | CH19: =IF(COUNTA('Data Input'!E12)=1,AVERAGE('Data Input'!E12:G12),NA()) ->  | CI19: =CH19 ->  | CQ19: =MIN('Data Input'!$E$8:$G$25,$H$9,$H$11)-((MAX('Data Input'!$E$8:$G$25,$H$9,$H$11)-MIN('Data Input'!$E$8:$G$25,$H$9,$H$11))/4) -> 0 | CR19: =IF(CS19=0,10,MAX('Data Input'!$E$8:$G$25,$H$9,$H$11)+((MAX('Data Input'!$E$8:$G$25,$H$9,$H$11)-MIN('Data Input'!$E$8:$G$25,$H$9,$H$11))/4)) -> 10 | CS19: 0 | CU19: =IF(COUNTA('Data Input'!E12)=1,MAX('Data Input'!E12:G12)-MIN('Data Input'!E12:G12),NA()) ->  | CW19: =$CU$12*IF(COUNT('Data Input'!E12:G12)=2,3.268,2.574) ->  | CX19: =IF(COUNTA('Data Input'!E12)=1,MAX('Data Input'!E12:G12)-MIN('Data Input'!E12:G12),"") -> 
BW20: 3 | BX20: 1 | BY20: 2 | BZ20: 6 | CH20: =IF(COUNTA('Data Input'!E13)=1,AVERAGE('Data Input'!E13:G13),NA()) ->  | CI20: =CH20 ->  | CQ20: =MIN('Data Input'!$E$8:$G$25,$H$9,$H$11)-((MAX('Data Input'!$E$8:$G$25,$H$9,$H$11)-MIN('Data Input'!$E$8:$G$25,$H$9,$H$11))/4) -> 0 | CR20: =IF(CS20=0,10,MAX('Data Input'!$E$8:$G$25,$H$9,$H$11)+((MAX('Data Input'!$E$8:$G$25,$H$9,$H$11)-MIN('Data Input'!$E$8:$G$25,$H$9,$H$11))/4)) -> 10 | CS20: 0 | CU20: =IF(COUNTA('Data Input'!E13)=1,MAX('Data Input'!E13:G13)-MIN('Data Input'!E13:G13),NA()) ->  | CW20: =$CU$12*IF(COUNT('Data Input'!E13:G13)=2,3.268,2.574) ->  | CX20: =IF(COUNTA('Data Input'!E13)=1,MAX('Data Input'!E13:G13)-MIN('Data Input'!E13:G13),"") -> 
BW21: 1 | BX21: 1 | BY21: 3 | BZ21: 7 | CH21: =IF(COUNTA('Data Input'!E14)=1,AVERAGE('Data Input'!E14:G14),NA()) ->  | CI21: =CH21 ->  | CQ21: =MIN('Data Input'!$E$8:$G$25,$H$9,$H$11)-((MAX('Data Input'!$E$8:$G$25,$H$9,$H$11)-MIN('Data Input'!$E$8:$G$25,$H$9,$H$11))/4) -> 0 | CR21: =IF(CS21=0,10,MAX('Data Input'!$E$8:$G$25,$H$9,$H$11)+((MAX('Data Input'!$E$8:$G$25,$H$9,$H$11)-MIN('Data Input'!$E$8:$G$25,$H$9,$H$11))/4)) -> 10 | CS21: 0 | CU21: =IF(COUNTA('Data Input'!E14)=1,MAX('Data Input'!E14:G14)-MIN('Data Input'!E14:G14),NA()) ->  | CW21: =$CU$12*IF(COUNT('Data Input'!E14:G14)=2,3.268,2.574) ->  | CX21: =IF(COUNTA('Data Input'!E14)=1,MAX('Data Input'!E14:G14)-MIN('Data Input'!E14:G14),"") -> 
B22: σrepeatability | E22: =IF(COUNTA('Data Input'!E8:G8)=3,CU12/1.693,IF(COUNTA('Data Input'!E8:G8)=2,CU12/1.128,"")) ->  | BW22: 2 | BX22: 1 | BY22: 3 | BZ22: 8 | CA22: =BZ22-0.5 -> 7.5 | CB22: =IF(COUNT('Data Input'!E10:G10)=3,BZ22,IF(COUNT('Data Input'!E10:G10)<3,CA22,"")) -> 7.5 | CH22: =IF(COUNTA('Data Input'!E15)=1,AVERAGE('Data Input'!E15:G15),NA()) ->  | CI22: =CH22 ->  | CQ22: =MIN('Data Input'!$E$8:$G$25,$H$9,$H$11)-((MAX('Data Input'!$E$8:$G$25,$H$9,$H$11)-MIN('Data Input'!$E$8:$G$25,$H$9,$H$11))/4) -> 0 | CR22: =IF(CS22=0,10,MAX('Data Input'!$E$8:$G$25,$H$9,$H$11)+((MAX('Data Input'!$E$8:$G$25,$H$9,$H$11)-MIN('Data Input'!$E$8:$G$25,$H$9,$H$11))/4)) -> 10 | CS22: 0 | CU22: =IF(COUNTA('Data Input'!E15)=1,MAX('Data Input'!E15:G15)-MIN('Data Input'!E15:G15),NA()) ->  | CW22: =$CU$12*IF(COUNT('Data Input'!E15:G15)=2,3.268,2.574) ->  | CX22: =IF(COUNTA('Data Input'!E15)=1,MAX('Data Input'!E15:G15)-MIN('Data Input'!E15:G15),"") -> 
BW23: 3 | BX23: 1 | BY23: 3 | BZ23: 9 | CH23: =IF(COUNTA('Data Input'!E16)=1,AVERAGE('Data Input'!E16:G16),NA()) ->  | CI23: =CH23 ->  | CQ23: =MIN('Data Input'!$E$8:$G$25,$H$9,$H$11)-((MAX('Data Input'!$E$8:$G$25,$H$9,$H$11)-MIN('Data Input'!$E$8:$G$25,$H$9,$H$11))/4) -> 0 | CR23: =IF(CS23=0,10,MAX('Data Input'!$E$8:$G$25,$H$9,$H$11)+((MAX('Data Input'!$E$8:$G$25,$H$9,$H$11)-MIN('Data Input'!$E$8:$G$25,$H$9,$H$11))/4)) -> 10 | CS23: 0 | CU23: =IF(COUNTA('Data Input'!E16)=1,MAX('Data Input'!E16:G16)-MIN('Data Input'!E16:G16),NA()) ->  | CW23: =$CU$12*IF(COUNT('Data Input'!E16:G16)=2,3.268,2.574) ->  | CX23: =IF(COUNTA('Data Input'!E16)=1,MAX('Data Input'!E16:G16)-MIN('Data Input'!E16:G16),"") -> 
BY24: 4 | BZ24: 10 | CH24: =IF(COUNTA('Data Input'!E17)=1,AVERAGE('Data Input'!E17:G17),NA()) ->  | CI24: =CH24 ->  | CQ24: =MIN('Data Input'!$E$8:$G$25,$H$9,$H$11)-((MAX('Data Input'!$E$8:$G$25,$H$9,$H$11)-MIN('Data Input'!$E$8:$G$25,$H$9,$H$11))/4) -> 0 | CR24: =IF(CS24=0,10,MAX('Data Input'!$E$8:$G$25,$H$9,$H$11)+((MAX('Data Input'!$E$8:$G$25,$H$9,$H$11)-MIN('Data Input'!$E$8:$G$25,$H$9,$H$11))/4)) -> 10 | CS24: 0 | CU24: =IF(COUNTA('Data Input'!E17)=1,MAX('Data Input'!E17:G17)-MIN('Data Input'!E17:G17),NA()) ->  | CW24: =$CU$12*IF(COUNT('Data Input'!E17:G17)=2,3.268,2.574) ->  | CX24: =IF(COUNTA('Data Input'!E17)=1,MAX('Data Input'!E17:G17)-MIN('Data Input'!E17:G17),"") -> 
BY25: 4 | BZ25: 11 | CA25: =BZ25-0.5 -> 10.5 | CB25: =IF(COUNT('Data Input'!E11:G11)=3,BZ25,IF(COUNT('Data Input'!E11:G11)<3,CA25,"")) -> 10.5 | CH25: =IF(COUNTA('Data Input'!E18)=1,AVERAGE('Data Input'!E18:G18),NA()) ->  | CI25: =CH25 ->  | CQ25: =MIN('Data Input'!$E$8:$G$25,$H$9,$H$11)-((MAX('Data Input'!$E$8:$G$25,$H$9,$H$11)-MIN('Data Input'!$E$8:$G$25,$H$9,$H$11))/4) -> 0 | CR25: =IF(CS25=0,10,MAX('Data Input'!$E$8:$G$25,$H$9,$H$11)+((MAX('Data Input'!$E$8:$G$25,$H$9,$H$11)-MIN('Data Input'!$E$8:$G$25,$H$9,$H$11))/4)) -> 10 | CS25: 0 | CU25: =IF(COUNTA('Data Input'!E18)=1,MAX('Data Input'!E18:G18)-MIN('Data Input'!E18:G18),NA()) ->  | CW25: =$CU$12*IF(COUNT('Data Input'!E18:G18)=2,3.268,2.574) ->  | CX25: =IF(COUNTA('Data Input'!E18)=1,MAX('Data Input'!E18:G18)-MIN('Data Input'!E18:G18),"") -> 
C26: Operator averages | D26: 1 | E26: =IF(COUNT('Data Input'!E8:G13)>0,AVERAGE('Data Input'!E8:G13),"") ->  | BY26: 4 | BZ26: 12 | CH26: =IF(COUNTA('Data Input'!E19)=1,AVERAGE('Data Input'!E19:G19),NA()) ->  | CI26: =CH26 ->  | CQ26: =MIN('Data Input'!$E$8:$G$25,$H$9,$H$11)-((MAX('Data Input'!$E$8:$G$25,$H$9,$H$11)-MIN('Data Input'!$E$8:$G$25,$H$9,$H$11))/4) -> 0 | CR26: =IF(CS26=0,10,MAX('Data Input'!$E$8:$G$25,$H$9,$H$11)+((MAX('Data Input'!$E$8:$G$25,$H$9,$H$11)-MIN('Data Input'!$E$8:$G$25,$H$9,$H$11))/4)) -> 10 | CS26: 0 | CU26: =IF(COUNTA('Data Input'!E19)=1,MAX('Data Input'!E19:G19)-MIN('Data Input'!E19:G19),NA()) ->  | CW26: =$CU$12*IF(COUNT('Data Input'!E19:G19)=2,3.268,2.574) ->  | CX26: =IF(COUNTA('Data Input'!E19)=1,MAX('Data Input'!E19:G19)-MIN('Data Input'!E19:G19),"") -> 
D27: 2 | E27: =IF(COUNT('Data Input'!E14:G19)>0,AVERAGE('Data Input'!E14:G19),"") ->  | BY27: 5 | BZ27: 13 | CH27: =IF(COUNTA('Data Input'!E20)=1,AVERAGE('Data Input'!E20:G20),NA()) ->  | CI27: =CH27 ->  | CQ27: =MIN('Data Input'!$E$8:$G$25,$H$9,$H$11)-((MAX('Data Input'!$E$8:$G$25,$H$9,$H$11)-MIN('Data Input'!$E$8:$G$25,$H$9,$H$11))/4) -> 0 | CR27: =IF(CS27=0,10,MAX('Data Input'!$E$8:$G$25,$H$9,$H$11)+((MAX('Data Input'!$E$8:$G$25,$H$9,$H$11)-MIN('Data Input'!$E$8:$G$25,$H$9,$H$11))/4)) -> 10 | CS27: 0 | CU27: =IF(COUNTA('Data Input'!E20)=1,MAX('Data Input'!E20:G20)-MIN('Data Input'!E20:G20),NA()) ->  | CW27: =$CU$12*IF(COUNT('Data Input'!E20:G20)=2,3.268,2.574) ->  | CX27: =IF(COUNTA('Data Input'!E20)=1,MAX('Data Input'!E20:G20)-MIN('Data Input'!E20:G20),"") -> 
D28: 3 | E28: =IF(COUNT('Data Input'!E20:G25)>0,AVERAGE('Data Input'!E20:G25),"") ->  | BY28: 5 | BZ28: 14 | CA28: =BZ28-0.5 -> 13.5 | CB28: =IF(COUNT('Data Input'!E12:G12)=3,BZ28,IF(COUNT('Data Input'!E12:G12)<3,CA28,"")) -> 13.5 | CH28: =IF(COUNTA('Data Input'!E21)=1,AVERAGE('Data Input'!E21:G21),NA()) ->  | CI28: =CH28 ->  | CQ28: =MIN('Data Input'!$E$8:$G$25,$H$9,$H$11)-((MAX('Data Input'!$E$8:$G$25,$H$9,$H$11)-MIN('Data Input'!$E$8:$G$25,$H$9,$H$11))/4) -> 0 | CR28: =IF(CS28=0,10,MAX('Data Input'!$E$8:$G$25,$H$9,$H$11)+((MAX('Data Input'!$E$8:$G$25,$H$9,$H$11)-MIN('Data Input'!$E$8:$G$25,$H$9,$H$11))/4)) -> 10 | CS28: 0 | CU28: =IF(COUNTA('Data Input'!E21)=1,MAX('Data Input'!E21:G21)-MIN('Data Input'!E21:G21),NA()) ->  | CW28: =$CU$12*IF(COUNT('Data Input'!E21:G21)=2,3.268,2.574) ->  | CX28: =IF(COUNTA('Data Input'!E21)=1,MAX('Data Input'!E21:G21)-MIN('Data Input'!E21:G21),"") -> 
BY29: 5 | BZ29: 15 | CH29: =IF(COUNTA('Data Input'!E22)=1,AVERAGE('Data Input'!E22:G22),NA()) ->  | CI29: =CH29 ->  | CQ29: =MIN('Data Input'!$E$8:$G$25,$H$9,$H$11)-((MAX('Data Input'!$E$8:$G$25,$H$9,$H$11)-MIN('Data Input'!$E$8:$G$25,$H$9,$H$11))/4) -> 0 | CR29: =IF(CS29=0,10,MAX('Data Input'!$E$8:$G$25,$H$9,$H$11)+((MAX('Data Input'!$E$8:$G$25,$H$9,$H$11)-MIN('Data Input'!$E$8:$G$25,$H$9,$H$11))/4)) -> 10 | CS29: 0 | CU29: =IF(COUNTA('Data Input'!E22)=1,MAX('Data Input'!E22:G22)-MIN('Data Input'!E22:G22),NA()) ->  | CW29: =$CU$12*IF(COUNT('Data Input'!E22:G22)=2,3.268,2.574) ->  | CX29: =IF(COUNTA('Data Input'!E22)=1,MAX('Data Input'!E22:G22)-MIN('Data Input'!E22:G22),"") -> 
BY30: 6 | BZ30: 16 | CH30: =IF(COUNTA('Data Input'!E23)=1,AVERAGE('Data Input'!E23:G23),NA()) ->  | CI30: =CH30 ->  | CQ30: =MIN('Data Input'!$E$8:$G$25,$H$9,$H$11)-((MAX('Data Input'!$E$8:$G$25,$H$9,$H$11)-MIN('Data Input'!$E$8:$G$25,$H$9,$H$11))/4) -> 0 | CR30: =IF(CS30=0,10,MAX('Data Input'!$E$8:$G$25,$H$9,$H$11)+((MAX('Data Input'!$E$8:$G$25,$H$9,$H$11)-MIN('Data Input'!$E$8:$G$25,$H$9,$H$11))/4)) -> 10 | CS30: 0 | CU30: =IF(COUNTA('Data Input'!E23)=1,MAX('Data Input'!E23:G23)-MIN('Data Input'!E23:G23),NA()) ->  | CW30: =$CU$12*IF(COUNT('Data Input'!E23:G23)=2,3.268,2.574) ->  | CX30: =IF(COUNTA('Data Input'!E23)=1,MAX('Data Input'!E23:G23)-MIN('Data Input'!E23:G23),"") -> 
BY31: 6 | BZ31: 17 | CA31: =BZ31-0.5 -> 16.5 | CB31: =IF(COUNT('Data Input'!E13:G13)=3,BZ31,IF(COUNT('Data Input'!E13:G13)<3,CA31,"")) -> 16.5 | CH31: =IF(COUNTA('Data Input'!E24)=1,AVERAGE('Data Input'!E24:G24),NA()) ->  | CI31: =CH31 ->  | CQ31: =MIN('Data Input'!$E$8:$G$25,$H$9,$H$11)-((MAX('Data Input'!$E$8:$G$25,$H$9,$H$11)-MIN('Data Input'!$E$8:$G$25,$H$9,$H$11))/4) -> 0 | CR31: =IF(CS31=0,10,MAX('Data Input'!$E$8:$G$25,$H$9,$H$11)+((MAX('Data Input'!$E$8:$G$25,$H$9,$H$11)-MIN('Data Input'!$E$8:$G$25,$H$9,$H$11))/4)) -> 10 | CS31: 0 | CU31: =IF(COUNTA('Data Input'!E24)=1,MAX('Data Input'!E24:G24)-MIN('Data Input'!E24:G24),NA()) ->  | CW31: =$CU$12*IF(COUNT('Data Input'!E24:G24)=2,3.268,2.574) ->  | CX31: =IF(COUNTA('Data Input'!E24)=1,MAX('Data Input'!E24:G24)-MIN('Data Input'!E24:G24),"") -> 
BY32: 6 | BZ32: 18 | CH32: =IF(COUNTA('Data Input'!E25)=1,AVERAGE('Data Input'!E25:G25),NA()) ->  | CI32: =CH32 ->  | CQ32: =MIN('Data Input'!$E$8:$G$25,$H$9,$H$11)-((MAX('Data Input'!$E$8:$G$25,$H$9,$H$11)-MIN('Data Input'!$E$8:$G$25,$H$9,$H$11))/4) -> 0 | CR32: =IF(CS32=0,10,MAX('Data Input'!$E$8:$G$25,$H$9,$H$11)+((MAX('Data Input'!$E$8:$G$25,$H$9,$H$11)-MIN('Data Input'!$E$8:$G$25,$H$9,$H$11))/4)) -> 10 | CS32: 0 | CU32: =IF(COUNTA('Data Input'!E25)=1,MAX('Data Input'!E25:G25)-MIN('Data Input'!E25:G25),NA()) ->  | CW32: =$CU$12*IF(COUNT('Data Input'!E25:G25)=2,3.268,2.574) ->  | CX32: =IF(COUNTA('Data Input'!E25)=1,MAX('Data Input'!E25:G25)-MIN('Data Input'!E25:G25),"") -> 
BY33: 1 | BZ33: 19 | CQ33: =MIN('Data Input'!$E$8:$G$25,$H$9,$H$11)-((MAX('Data Input'!$E$8:$G$25,$H$9,$H$11)-MIN('Data Input'!$E$8:$G$25,$H$9,$H$11))/4) -> 0 | CR33: =IF(CS33=0,10,MAX('Data Input'!$E$8:$G$25,$H$9,$H$11)+((MAX('Data Input'!$E$8:$G$25,$H$9,$H$11)-MIN('Data Input'!$E$8:$G$25,$H$9,$H$11))/4)) -> 10 | CS33: =IF(CQ33<0,0,CQ33) -> 0
BY34: 1 | BZ34: 20 | CA34: =BZ34-0.5 -> 19.5 | CB34: =IF(COUNT('Data Input'!E14:G14)=3,BZ34,IF(COUNT('Data Input'!E14:G14)<3,CA34,"")) -> 19.5 | CQ34: =MIN('Data Input'!$E$8:$G$25,$H$9,$H$11)-((MAX('Data Input'!$E$8:$G$25,$H$9,$H$11)-MIN('Data Input'!$E$8:$G$25,$H$9,$H$11))/4) -> 0 | CR34: =IF(CS34=0,10,MAX('Data Input'!$E$8:$G$25,$H$9,$H$11)+((MAX('Data Input'!$E$8:$G$25,$H$9,$H$11)-MIN('Data Input'!$E$8:$G$25,$H$9,$H$11))/4)) -> 10 | CS34: 0
BY35: 1 | BZ35: 21 | CQ35: =MIN('Data Input'!$E$8:$G$25,$H$9,$H$11)-((MAX('Data Input'!$E$8:$G$25,$H$9,$H$11)-MIN('Data Input'!$E$8:$G$25,$H$9,$H$11))/4) -> 0 | CR35: =IF(CS35=0,10,MAX('Data Input'!$E$8:$G$25,$H$9,$H$11)+((MAX('Data Input'!$E$8:$G$25,$H$9,$H$11)-MIN('Data Input'!$E$8:$G$25,$H$9,$H$11))/4)) -> 10 | CS35: 0
BY36: 2 | BZ36: 22 | CQ36: =MIN('Data Input'!$E$8:$G$25,$H$9,$H$11)-((MAX('Data Input'!$E$8:$G$25,$H$9,$H$11)-MIN('Data Input'!$E$8:$G$25,$H$9,$H$11))/4) -> 0 | CR36: =IF(CS36=0,10,MAX('Data Input'!$E$8:$G$25,$H$9,$H$11)+((MAX('Data Input'!$E$8:$G$25,$H$9,$H$11)-MIN('Data Input'!$E$8:$G$25,$H$9,$H$11))/4)) -> 10 | CS36: 0
BY37: 2 | BZ37: 23 | CA37: =BZ37-0.5 -> 22.5 | CB37: =IF(COUNT('Data Input'!E15:G15)=3,BZ37,IF(COUNT('Data Input'!E15:G15)<3,CA37,"")) -> 22.5 | CQ37: =MIN('Data Input'!$E$8:$G$25,$H$9,$H$11)-((MAX('Data Input'!$E$8:$G$25,$H$9,$H$11)-MIN('Data Input'!$E$8:$G$25,$H$9,$H$11))/4) -> 0 | CR37: =IF(CS37=0,10,MAX('Data Input'!$E$8:$G$25,$H$9,$H$11)+((MAX('Data Input'!$E$8:$G$25,$H$9,$H$11)-MIN('Data Input'!$E$8:$G$25,$H$9,$H$11))/4)) -> 10 | CS37: 0
BY38: 2 | BZ38: 24 | CQ38: =MIN('Data Input'!$E$8:$G$25,$H$9,$H$11)-((MAX('Data Input'!$E$8:$G$25,$H$9,$H$11)-MIN('Data Input'!$E$8:$G$25,$H$9,$H$11))/4) -> 0 | CR38: =IF(CS38=0,10,MAX('Data Input'!$E$8:$G$25,$H$9,$H$11)+((MAX('Data Input'!$E$8:$G$25,$H$9,$H$11)-MIN('Data Input'!$E$8:$G$25,$H$9,$H$11))/4)) -> 10 | CS38: 0
BY39: 3 | BZ39: 25 | CQ39: =MIN('Data Input'!$E$8:$G$25,$H$9,$H$11)-((MAX('Data Input'!$E$8:$G$25,$H$9,$H$11)-MIN('Data Input'!$E$8:$G$25,$H$9,$H$11))/4) -> 0 | CR39: =IF(CS39=0,10,MAX('Data Input'!$E$8:$G$25,$H$9,$H$11)+((MAX('Data Input'!$E$8:$G$25,$H$9,$H$11)-MIN('Data Input'!$E$8:$G$25,$H$9,$H$11))/4)) -> 10 | CS39: 0
BY40: 3 | BZ40: 26 | CA40: =BZ40-0.5 -> 25.5 | CB40: =IF(COUNT('Data Input'!E16:G16)=3,BZ40,IF(COUNT('Data Input'!E16:G16)<3,CA40,"")) -> 25.5 | CQ40: =MIN('Data Input'!$E$8:$G$25,$H$9,$H$11)-((MAX('Data Input'!$E$8:$G$25,$H$9,$H$11)-MIN('Data Input'!$E$8:$G$25,$H$9,$H$11))/4) -> 0 | CR40: =IF(CS40=0,10,MAX('Data Input'!$E$8:$G$25,$H$9,$H$11)+((MAX('Data Input'!$E$8:$G$25,$H$9,$H$11)-MIN('Data Input'!$E$8:$G$25,$H$9,$H$11))/4)) -> 10 | CS40: 0
BY41: 3 | BZ41: 27 | CQ41: =MIN('Data Input'!$E$8:$G$25,$H$9,$H$11)-((MAX('Data Input'!$E$8:$G$25,$H$9,$H$11)-MIN('Data Input'!$E$8:$G$25,$H$9,$H$11))/4) -> 0 | CR41: =IF(CS41=0,10,MAX('Data Input'!$E$8:$G$25,$H$9,$H$11)+((MAX('Data Input'!$E$8:$G$25,$H$9,$H$11)-MIN('Data Input'!$E$8:$G$25,$H$9,$H$11))/4)) -> 10 | CS41: 0
BY42: 4 | BZ42: 28 | CQ42: =MIN('Data Input'!$E$8:$G$25,$H$9,$H$11)-((MAX('Data Input'!$E$8:$G$25,$H$9,$H$11)-MIN('Data Input'!$E$8:$G$25,$H$9,$H$11))/4) -> 0 | CR42: =IF(CS42=0,10,MAX('Data Input'!$E$8:$G$25,$H$9,$H$11)+((MAX('Data Input'!$E$8:$G$25,$H$9,$H$11)-MIN('Data Input'!$E$8:$G$25,$H$9,$H$11))/4)) -> 10 | CS42: 0
BY43: 4 | BZ43: 29 | CA43: =BZ43-0.5 -> 28.5 | CB43: =IF(COUNT('Data Input'!E17:G17)=3,BZ43,IF(COUNT('Data Input'!E17:G17)<3,CA43,"")) -> 28.5 | CQ43: =MIN('Data Input'!$E$8:$G$25,$H$9,$H$11)-((MAX('Data Input'!$E$8:$G$25,$H$9,$H$11)-MIN('Data Input'!$E$8:$G$25,$H$9,$H$11))/4) -> 0 | CR43: =IF(CS43=0,10,MAX('Data Input'!$E$8:$G$25,$H$9,$H$11)+((MAX('Data Input'!$E$8:$G$25,$H$9,$H$11)-MIN('Data Input'!$E$8:$G$25,$H$9,$H$11))/4)) -> 10 | CS43: 0
BY44: 4 | BZ44: 30 | CQ44: =MIN('Data Input'!$E$8:$G$25,$H$9,$H$11)-((MAX('Data Input'!$E$8:$G$25,$H$9,$H$11)-MIN('Data Input'!$E$8:$G$25,$H$9,$H$11))/4) -> 0 | CR44: =IF(CS44=0,10,MAX('Data Input'!$E$8:$G$25,$H$9,$H$11)+((MAX('Data Input'!$E$8:$G$25,$H$9,$H$11)-MIN('Data Input'!$E$8:$G$25,$H$9,$H$11))/4)) -> 10 | CS44: 0
BY45: 5 | BZ45: 31 | CQ45: =MIN('Data Input'!$E$8:$G$25,$H$9,$H$11)-((MAX('Data Input'!$E$8:$G$25,$H$9,$H$11)-MIN('Data Input'!$E$8:$G$25,$H$9,$H$11))/4) -> 0 | CR45: =IF(CS45=0,10,MAX('Data Input'!$E$8:$G$25,$H$9,$H$11)+((MAX('Data Input'!$E$8:$G$25,$H$9,$H$11)-MIN('Data Input'!$E$8:$G$25,$H$9,$H$11))/4)) -> 10 | CS45: 0
BY46: 5 | BZ46: 32 | CA46: =BZ46-0.5 -> 31.5 | CB46: =IF(COUNT('Data Input'!E18:G18)=3,BZ46,IF(COUNT('Data Input'!E18:G18)<3,CA46,"")) -> 31.5 | CQ46: =MIN('Data Input'!$E$8:$G$25,$H$9,$H$11)-((MAX('Data Input'!$E$8:$G$25,$H$9,$H$11)-MIN('Data Input'!$E$8:$G$25,$H$9,$H$11))/4) -> 0 | CR46: =IF(CS46=0,10,MAX('Data Input'!$E$8:$G$25,$H$9,$H$11)+((MAX('Data Input'!$E$8:$G$25,$H$9,$H$11)-MIN('Data Input'!$E$8:$G$25,$H$9,$H$11))/4)) -> 10 | CS46: 0
BY47: 5 | BZ47: 33 | CQ47: =MIN('Data Input'!$E$8:$G$25,$H$9,$H$11)-((MAX('Data Input'!$E$8:$G$25,$H$9,$H$11)-MIN('Data Input'!$E$8:$G$25,$H$9,$H$11))/4) -> 0 | CR47: =IF(CS47=0,10,MAX('Data Input'!$E$8:$G$25,$H$9,$H$11)+((MAX('Data Input'!$E$8:$G$25,$H$9,$H$11)-MIN('Data Input'!$E$8:$G$25,$H$9,$H$11))/4)) -> 10 | CS47: 0
BY48: 6 | BZ48: 34 | CQ48: =MIN('Data Input'!$E$8:$G$25,$H$9,$H$11)-((MAX('Data Input'!$E$8:$G$25,$H$9,$H$11)-MIN('Data Input'!$E$8:$G$25,$H$9,$H$11))/4) -> 0 | CR48: =IF(CS48=0,10,MAX('Data Input'!$E$8:$G$25,$H$9,$H$11)+((MAX('Data Input'!$E$8:$G$25,$H$9,$H$11)-MIN('Data Input'!$E$8:$G$25,$H$9,$H$11))/4)) -> 10 | CS48: 0
BY49: 6 | BZ49: 35 | CA49: =BZ49-0.5 -> 34.5 | CB49: =IF(COUNT('Data Input'!E19:G19)=3,BZ49,IF(COUNT('Data Input'!E19:G19)<3,CA49,"")) -> 34.5 | CQ49: =MIN('Data Input'!$E$8:$G$25,$H$9,$H$11)-((MAX('Data Input'!$E$8:$G$25,$H$9,$H$11)-MIN('Data Input'!$E$8:$G$25,$H$9,$H$11))/4) -> 0 | CR49: =IF(CS49=0,10,MAX('Data Input'!$E$8:$G$25,$H$9,$H$11)+((MAX('Data Input'!$E$8:$G$25,$H$9,$H$11)-MIN('Data Input'!$E$8:$G$25,$H$9,$H$11))/4)) -> 10 | CS49: 0
BY50: 6 | BZ50: 36 | CQ50: =MIN('Data Input'!$E$8:$G$25,$H$9,$H$11)-((MAX('Data Input'!$E$8:$G$25,$H$9,$H$11)-MIN('Data Input'!$E$8:$G$25,$H$9,$H$11))/4) -> 0 | CR50: =IF(CS50=0,10,MAX('Data Input'!$E$8:$G$25,$H$9,$H$11)+((MAX('Data Input'!$E$8:$G$25,$H$9,$H$11)-MIN('Data Input'!$E$8:$G$25,$H$9,$H$11))/4)) -> 10 | CS50: 0
BY51: 1 | BZ51: 37 | CQ51: =MIN('Data Input'!$E$8:$G$25,$H$9,$H$11)-((MAX('Data Input'!$E$8:$G$25,$H$9,$H$11)-MIN('Data Input'!$E$8:$G$25,$H$9,$H$11))/4) -> 0 | CR51: =IF(CS51=0,10,MAX('Data Input'!$E$8:$G$25,$H$9,$H$11)+((MAX('Data Input'!$E$8:$G$25,$H$9,$H$11)-MIN('Data Input'!$E$8:$G$25,$H$9,$H$11))/4)) -> 10 | CS51: 0
BY52: 1 | BZ52: 38 | CA52: =BZ52-0.5 -> 37.5 | CB52: =IF(COUNT('Data Input'!E20:G20)=3,BZ52,IF(COUNT('Data Input'!E20:G20)<3,CA52,"")) -> 37.5 | CQ52: =MIN('Data Input'!$E$8:$G$25,$H$9,$H$11)-((MAX('Data Input'!$E$8:$G$25,$H$9,$H$11)-MIN('Data Input'!$E$8:$G$25,$H$9,$H$11))/4) -> 0 | CR52: =IF(CS52=0,10,MAX('Data Input'!$E$8:$G$25,$H$9,$H$11)+((MAX('Data Input'!$E$8:$G$25,$H$9,$H$11)-MIN('Data Input'!$E$8:$G$25,$H$9,$H$11))/4)) -> 10 | CS52: 0
BY53: 1 | BZ53: 39 | CQ53: =MIN('Data Input'!$E$8:$G$25,$H$9,$H$11)-((MAX('Data Input'!$E$8:$G$25,$H$9,$H$11)-MIN('Data Input'!$E$8:$G$25,$H$9,$H$11))/4) -> 0 | CR53: =IF(CS53=0,10,MAX('Data Input'!$E$8:$G$25,$H$9,$H$11)+((MAX('Data Input'!$E$8:$G$25,$H$9,$H$11)-MIN('Data Input'!$E$8:$G$25,$H$9,$H$11))/4)) -> 10 | CS53: 0
BY54: 2 | BZ54: 40 | CQ54: =MIN('Data Input'!$E$8:$G$25,$H$9,$H$11)-((MAX('Data Input'!$E$8:$G$25,$H$9,$H$11)-MIN('Data Input'!$E$8:$G$25,$H$9,$H$11))/4) -> 0 | CR54: =IF(CS54=0,10,MAX('Data Input'!$E$8:$G$25,$H$9,$H$11)+((MAX('Data Input'!$E$8:$G$25,$H$9,$H$11)-MIN('Data Input'!$E$8:$G$25,$H$9,$H$11))/4)) -> 10 | CS54: 0
BY55: 2 | BZ55: 41 | CA55: =BZ55-0.5 -> 40.5 | CB55: =IF(COUNT('Data Input'!E21:G21)=3,BZ55,IF(COUNT('Data Input'!E21:G21)<3,CA55,"")) -> 40.5 | CQ55: =MIN('Data Input'!$E$8:$G$25,$H$9,$H$11)-((MAX('Data Input'!$E$8:$G$25,$H$9,$H$11)-MIN('Data Input'!$E$8:$G$25,$H$9,$H$11))/4) -> 0 | CR55: =IF(CS55=0,10,MAX('Data Input'!$E$8:$G$25,$H$9,$H$11)+((MAX('Data Input'!$E$8:$G$25,$H$9,$H$11)-MIN('Data Input'!$E$8:$G$25,$H$9,$H$11))/4)) -> 10 | CS55: 0
BY56: 2 | BZ56: 42 | CQ56: =MIN('Data Input'!$E$8:$G$25,$H$9,$H$11)-((MAX('Data Input'!$E$8:$G$25,$H$9,$H$11)-MIN('Data Input'!$E$8:$G$25,$H$9,$H$11))/4) -> 0 | CR56: =IF(CS56=0,10,MAX('Data Input'!$E$8:$G$25,$H$9,$H$11)+((MAX('Data Input'!$E$8:$G$25,$H$9,$H$11)-MIN('Data Input'!$E$8:$G$25,$H$9,$H$11))/4)) -> 10 | CS56: 0
BY57: 3 | BZ57: 43 | CQ57: =MIN('Data Input'!$E$8:$G$25,$H$9,$H$11)-((MAX('Data Input'!$E$8:$G$25,$H$9,$H$11)-MIN('Data Input'!$E$8:$G$25,$H$9,$H$11))/4) -> 0 | CR57: =IF(CS57=0,10,MAX('Data Input'!$E$8:$G$25,$H$9,$H$11)+((MAX('Data Input'!$E$8:$G$25,$H$9,$H$11)-MIN('Data Input'!$E$8:$G$25,$H$9,$H$11))/4)) -> 10 | CS57: 0
BY58: 3 | BZ58: 44 | CA58: =BZ58-0.5 -> 43.5 | CB58: =IF(COUNT('Data Input'!E22:G22)=3,BZ58,IF(COUNT('Data Input'!E22:G22)<3,CA58,"")) -> 43.5 | CQ58: =MIN('Data Input'!$E$8:$G$25,$H$9,$H$11)-((MAX('Data Input'!$E$8:$G$25,$H$9,$H$11)-MIN('Data Input'!$E$8:$G$25,$H$9,$H$11))/4) -> 0 | CR58: =IF(CS58=0,10,MAX('Data Input'!$E$8:$G$25,$H$9,$H$11)+((MAX('Data Input'!$E$8:$G$25,$H$9,$H$11)-MIN('Data Input'!$E$8:$G$25,$H$9,$H$11))/4)) -> 10 | CS58: 0
BY59: 3 | BZ59: 45 | CQ59: =MIN('Data Input'!$E$8:$G$25,$H$9,$H$11)-((MAX('Data Input'!$E$8:$G$25,$H$9,$H$11)-MIN('Data Input'!$E$8:$G$25,$H$9,$H$11))/4) -> 0 | CR59: =IF(CS59=0,10,MAX('Data Input'!$E$8:$G$25,$H$9,$H$11)+((MAX('Data Input'!$E$8:$G$25,$H$9,$H$11)-MIN('Data Input'!$E$8:$G$25,$H$9,$H$11))/4)) -> 10 | CS59: 0
BY60: 4 | BZ60: 46 | CQ60: =MIN('Data Input'!$E$8:$G$25,$H$9,$H$11)-((MAX('Data Input'!$E$8:$G$25,$H$9,$H$11)-MIN('Data Input'!$E$8:$G$25,$H$9,$H$11))/4) -> 0 | CR60: =IF(CS60=0,10,MAX('Data Input'!$E$8:$G$25,$H$9,$H$11)+((MAX('Data Input'!$E$8:$G$25,$H$9,$H$11)-MIN('Data Input'!$E$8:$G$25,$H$9,$H$11))/4)) -> 10 | CS60: 0
BY61: 4 | BZ61: 47 | CA61: =BZ61-0.5 -> 46.5 | CB61: =IF(COUNT('Data Input'!E23:G23)=3,BZ61,IF(COUNT('Data Input'!E23:G23)<3,CA61,"")) -> 46.5 | CQ61: =MIN('Data Input'!$E$8:$G$25,$H$9,$H$11)-((MAX('Data Input'!$E$8:$G$25,$H$9,$H$11)-MIN('Data Input'!$E$8:$G$25,$H$9,$H$11))/4) -> 0 | CR61: =IF(CS61=0,10,MAX('Data Input'!$E$8:$G$25,$H$9,$H$11)+((MAX('Data Input'!$E$8:$G$25,$H$9,$H$11)-MIN('Data Input'!$E$8:$G$25,$H$9,$H$11))/4)) -> 10 | CS61: 0
BY62: 4 | BZ62: 48 | CQ62: =MIN('Data Input'!$E$8:$G$25,$H$9,$H$11)-((MAX('Data Input'!$E$8:$G$25,$H$9,$H$11)-MIN('Data Input'!$E$8:$G$25,$H$9,$H$11))/4) -> 0 | CR62: =IF(CS62=0,10,MAX('Data Input'!$E$8:$G$25,$H$9,$H$11)+((MAX('Data Input'!$E$8:$G$25,$H$9,$H$11)-MIN('Data Input'!$E$8:$G$25,$H$9,$H$11))/4)) -> 10 | CS62: 0
BY63: 5 | BZ63: 49 | CQ63: =MIN('Data Input'!$E$8:$G$25,$H$9,$H$11)-((MAX('Data Input'!$E$8:$G$25,$H$9,$H$11)-MIN('Data Input'!$E$8:$G$25,$H$9,$H$11))/4) -> 0 | CR63: =IF(CS63=0,10,MAX('Data Input'!$E$8:$G$25,$H$9,$H$11)+((MAX('Data Input'!$E$8:$G$25,$H$9,$H$11)-MIN('Data Input'!$E$8:$G$25,$H$9,$H$11))/4)) -> 10 | CS63: 0
BY64: 5 | BZ64: 50 | CA64: =BZ64-0.5 -> 49.5 | CB64: =IF(COUNT('Data Input'!E24:G24)=3,BZ64,IF(COUNT('Data Input'!E24:G24)<3,CA64,"")) -> 49.5 | CQ64: =MIN('Data Input'!$E$8:$G$25,$H$9,$H$11)-((MAX('Data Input'!$E$8:$G$25,$H$9,$H$11)-MIN('Data Input'!$E$8:$G$25,$H$9,$H$11))/4) -> 0 | CR64: =IF(CS64=0,10,MAX('Data Input'!$E$8:$G$25,$H$9,$H$11)+((MAX('Data Input'!$E$8:$G$25,$H$9,$H$11)-MIN('Data Input'!$E$8:$G$25,$H$9,$H$11))/4)) -> 10 | CS64: 0
BY65: 5 | BZ65: 51 | CQ65: =MIN('Data Input'!$E$8:$G$25,$H$9,$H$11)-((MAX('Data Input'!$E$8:$G$25,$H$9,$H$11)-MIN('Data Input'!$E$8:$G$25,$H$9,$H$11))/4) -> 0 | CR65: =IF(CS65=0,10,MAX('Data Input'!$E$8:$G$25,$H$9,$H$11)+((MAX('Data Input'!$E$8:$G$25,$H$9,$H$11)-MIN('Data Input'!$E$8:$G$25,$H$9,$H$11))/4)) -> 10 | CS65: 0
BY66: 6 | BZ66: 52 | CQ66: =MIN('Data Input'!$E$8:$G$25,$H$9,$H$11)-((MAX('Data Input'!$E$8:$G$25,$H$9,$H$11)-MIN('Data Input'!$E$8:$G$25,$H$9,$H$11))/4) -> 0 | CR66: =IF(CS66=0,10,MAX('Data Input'!$E$8:$G$25,$H$9,$H$11)+((MAX('Data Input'!$E$8:$G$25,$H$9,$H$11)-MIN('Data Input'!$E$8:$G$25,$H$9,$H$11))/4)) -> 10 | CS66: 0
BY67: 6 | BZ67: 53 | CA67: =BZ67-0.5 -> 52.5 | CB67: =IF(COUNT('Data Input'!E25:G25)=3,BZ67,IF(COUNT('Data Input'!E25:G25)<3,CA67,"")) -> 52.5 | CQ67: =MIN('Data Input'!$E$8:$G$25,$H$9,$H$11)-((MAX('Data Input'!$E$8:$G$25,$H$9,$H$11)-MIN('Data Input'!$E$8:$G$25,$H$9,$H$11))/4) -> 0 | CR67: =IF(CS67=0,10,MAX('Data Input'!$E$8:$G$25,$H$9,$H$11)+((MAX('Data Input'!$E$8:$G$25,$H$9,$H$11)-MIN('Data Input'!$E$8:$G$25,$H$9,$H$11))/4)) -> 10 | CS67: 0
BY68: 6 | BZ68: 54 | CQ68: =MIN('Data Input'!$E$8:$G$25,$H$9,$H$11)-((MAX('Data Input'!$E$8:$G$25,$H$9,$H$11)-MIN('Data Input'!$E$8:$G$25,$H$9,$H$11))/4) -> 0 | CR68: =IF(CS68=0,10,MAX('Data Input'!$E$8:$G$25,$H$9,$H$11)+((MAX('Data Input'!$E$8:$G$25,$H$9,$H$11)-MIN('Data Input'!$E$8:$G$25,$H$9,$H$11))/4)) -> 10 | CS68: 0
